[Event "Titled Tuesday Blitz August 17 2021"]
[White "Bortnyk, Olexandr"]
[Black "Damjanovic, Vladimir"]
[WhiteFideId "14120828"]
[BlackFideId "903795"]
[WhiteElo "2723"]
[BlackElo "2374"]
[Result "1-0"]
[Round "01"]
[TimeControl "180+1"]
[Date "2021.08.17"]
[WhiteClock "0:00:11"]
[BlackClock "0:00:02"]

1. e4 {[%clk 0:03:00]}  c5 {[%clk 0:02:59]} 2. c3 {[%clk 0:02:59]}  Nf6 {[%clk 0:02:59]} 3. e5 {[%clk 0:02:57]}  Nd5 {[%clk 0:02:59]} 4. d4 {[%clk 0:02:57]}  Nc6 {[%clk 0:03:00]} 5. Nf3 {[%clk 0:02:56]}  cxd4 {[%clk 0:03:00]} 6. cxd4 {[%clk 0:02:57]}  d6 {[%clk 0:03:00]} 7. Bc4 {[%clk 0:02:56]}  Nb6 {[%clk 0:03:00]} 8. Bb5 {[%clk 0:02:56]}  dxe5 {[%clk 0:03:00]} 9. Nxe5 {[%clk 0:02:57]}  Bd7 {[%clk 0:03:00]} 10. Nxd7 {[%clk 0:02:55]}  Qxd7 {[%clk 0:03:01]} 11. Nc3 {[%clk 0:02:55]}  e6 {[%clk 0:02:46]} 12. O-O {[%clk 0:02:53]}  a6 {[%clk 0:02:46]} 13. Bxc6 {[%clk 0:02:53]}  Qxc6 {[%clk 0:02:47]} 14. Qg4 {[%clk 0:02:45]}  h5 {[%clk 0:02:46]} 15. Qg3 {[%clk 0:02:43]}  h4 {[%clk 0:02:45]} 16. Qg4 {[%clk 0:02:43]}  h3 {[%clk 0:02:45]} 17. gxh3 {[%clk 0:02:43]}  Nd5 {[%clk 0:02:12]} 18. Re1 {[%clk 0:02:23]}  Nf6 {[%clk 0:02:01]} 19. Qg2 {[%clk 0:02:21]}  Qxg2+ {[%clk 0:01:56]} 20. Kxg2 {[%clk 0:02:22]}  Bb4 {[%clk 0:01:56]} 21. a3 {[%clk 0:02:04]}  Bxc3 {[%clk 0:01:54]} 22. bxc3 {[%clk 0:02:05]}  Rc8 {[%clk 0:01:54]} 23. Bd2 {[%clk 0:02:01]}  Nd5 {[%clk 0:01:36]} 24. Reb1 {[%clk 0:01:41]}  b6 {[%clk 0:01:29]} 25. Rb3 {[%clk 0:01:06]}  Kd7 {[%clk 0:01:28]} 26. Re1 {[%clk 0:01:05]}  Rc4 {[%clk 0:01:25]} 27. Re4 {[%clk 0:00:58]}  g6 {[%clk 0:01:21]} 28. Rg4 {[%clk 0:00:57]}  b5 {[%clk 0:01:01]} 29. Rg3 {[%clk 0:00:55]}  Rhc8 {[%clk 0:00:56]} 30. Rf3 {[%clk 0:00:54]}  Ke7 {[%clk 0:00:50]} 31. h4 {[%clk 0:00:54]}  Rh8 {[%clk 0:00:46]} 32. Kg3 {[%clk 0:00:51]}  f6 {[%clk 0:00:38]} 33. Kg4 {[%clk 0:00:47]}  Kf7 {[%clk 0:00:35]} 34. Kg3 {[%clk 0:00:42]}  Ne7 {[%clk 0:00:34]} 35. Rd3 {[%clk 0:00:35]}  Rh5 {[%clk 0:00:27]} 36. h3 {[%clk 0:00:33]}  Nf5+ {[%clk 0:00:26]} 37. Kh2 {[%clk 0:00:33]}  Nxh4 {[%clk 0:00:18]} 38. Rb4 {[%clk 0:00:33]}  Rd5 {[%clk 0:00:12]} 39. Rg3 {[%clk 0:00:30]}  Nf5 {[%clk 0:00:12]} 40. Rg1 {[%clk 0:00:29]}  e5 {[%clk 0:00:06]} 41. Rxc4 {[%clk 0:00:26]}  bxc4 {[%clk 0:00:07]} 42. Rb1 {[%clk 0:00:27]}  exd4 {[%clk 0:00:08]} 43. Rb7+ {[%clk 0:00:26]}  Ke6 {[%clk 0:00:08]} 44. Rc7 {[%clk 0:00:27]}  Nd6 {[%clk 0:00:06]} 45. Rc6 {[%clk 0:00:27]}  d3 {[%clk 0:00:04]} 46. Rxa6 {[%clk 0:00:27]}  Kf5 {[%clk 0:00:04]} 47. f3 {[%clk 0:00:27]}  g5 {[%clk 0:00:03]} 48. Rc6 {[%clk 0:00:26]}  Ke6 {[%clk 0:00:03]} 49. Kg3 {[%clk 0:00:25]}  Re5 {[%clk 0:00:02]} 50. f4 {[%clk 0:00:25]}  Re2 {[%clk 0:00:03]} 51. fxg5 {[%clk 0:00:23]}  Rxd2 {[%clk 0:00:03]} 52. g6 {[%clk 0:00:24]}  Rd1 {[%clk 0:00:03]} 53. Kf2 {[%clk 0:00:22]}  Rd2+ {[%clk 0:00:03]} 54. Kf3 {[%clk 0:00:23]}  Rd1 {[%clk 0:00:03]} 55. Kf2 {[%clk 0:00:23]}  Ke7 {[%clk 0:00:02]} 56. Rxd6 {[%clk 0:00:18]}  Rd2+ {[%clk 0:00:02]} 57. Kf3 {[%clk 0:00:17]}  Rd1 {[%clk 0:00:01]} 58. Rd4 {[%clk 0:00:17]}  Rg1 {[%clk 0:00:01]} 59. Kf2 {[%clk 0:00:13]}  Rxg6 {[%clk 0:00:01]} 60. Rxc4 {[%clk 0:00:14]}  Rh6 {[%clk 0:00:02]} 61. h4 {[%clk 0:00:12]}  d2 {[%clk 0:00:01]} 62. Ke2 {[%clk 0:00:11]}  Rxh4 {[%clk 0:00:02]} 63. Rxh4 {[%clk 0:00:11]} 1-0


[Site "https://www.chess.com"]

[Event "Titled Tuesday Blitz August 17 2021"]
[White "Brunner, Nicolas"]
[Black "Kuzubov, Yuriy"]
[WhiteFideId "620246"]
[BlackFideId "14112906"]
[WhiteElo "2372"]
[BlackElo "2564"]
[Result "0-1"]
[Round "01"]
[TimeControl "180+1"]
[Date "2021.08.17"]
[WhiteClock "0:00:02"]
[BlackClock "0:00:09"]

1. d4 {[%clk 0:02:58]}  Nf6 {[%clk 0:02:59]} 2. c4 {[%clk 0:02:58]}  e6 {[%clk 0:02:59]} 3. Nf3 {[%clk 0:02:58]}  d5 {[%clk 0:02:59]} 4. Nc3 {[%clk 0:02:56]}  Nbd7 {[%clk 0:02:59]} 5. Bf4 {[%clk 0:02:54]}  Be7 {[%clk 0:02:55]} 6. e3 {[%clk 0:02:54]}  O-O {[%clk 0:02:54]} 7. Rc1 {[%clk 0:02:54]}  a6 {[%clk 0:02:53]} 8. cxd5 {[%clk 0:02:53]}  exd5 {[%clk 0:02:53]} 9. Bd3 {[%clk 0:02:54]}  c6 {[%clk 0:02:51]} 10. h3 {[%clk 0:02:54]}  Re8 {[%clk 0:02:48]} 11. O-O {[%clk 0:02:53]}  Nf8 {[%clk 0:02:48]} 12. Ne5 {[%clk 0:02:53]}  N6d7 {[%clk 0:02:35]} 13. Bh2 {[%clk 0:02:43]}  Nxe5 {[%clk 0:02:32]} 14. dxe5 {[%clk 0:02:42]}  f6 {[%clk 0:02:32]} 15. exf6 {[%clk 0:02:40]}  Bxf6 {[%clk 0:02:32]} 16. Qb3 {[%clk 0:02:36]}  Kh8 {[%clk 0:02:25]} 17. Rfd1 {[%clk 0:02:34]}  Qe7 {[%clk 0:02:17]} 18. e4 {[%clk 0:02:29]}  Bxc3 {[%clk 0:02:12]} 19. Qxc3 {[%clk 0:02:25]}  dxe4 {[%clk 0:02:12]} 20. Re1 {[%clk 0:02:25]}  Bf5 {[%clk 0:02:10]} 21. f3 {[%clk 0:02:19]}  Ng6 {[%clk 0:01:50]} 22. Bxe4 {[%clk 0:02:18]}  Qf7 {[%clk 0:01:46]} 23. Bxf5 {[%clk 0:02:12]}  Qxf5 {[%clk 0:01:47]} 24. Qb4 {[%clk 0:02:02]}  Qf7 {[%clk 0:01:42]} 25. Rcd1 {[%clk 0:01:51]}  h6 {[%clk 0:01:40]} 26. a3 {[%clk 0:01:44]}  Rxe1+ {[%clk 0:01:36]} 27. Rxe1 {[%clk 0:01:44]}  Rd8 {[%clk 0:01:36]} 28. Bg3 {[%clk 0:01:29]}  Kg8 {[%clk 0:01:34]} 29. Kh2 {[%clk 0:01:28]}  Rd7 {[%clk 0:01:23]} 30. Re2 {[%clk 0:01:21]}  Ne7 {[%clk 0:01:21]} 31. Be5 {[%clk 0:01:14]}  Nd5 {[%clk 0:01:20]} 32. Qg4 {[%clk 0:01:13]}  Re7 {[%clk 0:01:15]} 33. Re4 {[%clk 0:01:03]}  Kh7 {[%clk 0:01:10]} 34. f4 {[%clk 0:00:48]}  Nf6 {[%clk 0:01:06]} 35. Qf5+ {[%clk 0:00:35]}  Qg6 {[%clk 0:01:02]} 36. Qxg6+ {[%clk 0:00:33]}  Kxg6 {[%clk 0:01:03]} 37. Rd4 {[%clk 0:00:31]}  Nd7 {[%clk 0:00:53]} 38. Rd6+ {[%clk 0:00:31]}  Kf7 {[%clk 0:00:52]} 39. Bc3 {[%clk 0:00:28]}  Nc5 {[%clk 0:00:48]} 40. Rd8 {[%clk 0:00:20]}  Ne6 {[%clk 0:00:33]} 41. Rd2 {[%clk 0:00:20]}  Nxf4 {[%clk 0:00:28]} 42. Rf2 {[%clk 0:00:19]}  g5 {[%clk 0:00:26]} 43. Bd2 {[%clk 0:00:09]}  Re2 {[%clk 0:00:24]} 44. Kg1 {[%clk 0:00:06]}  Rxf2 {[%clk 0:00:22]} 45. Kxf2 {[%clk 0:00:07]}  Ke6 {[%clk 0:00:21]} 46. Kf3 {[%clk 0:00:07]}  Nd5 {[%clk 0:00:16]} 47. Ke4 {[%clk 0:00:07]}  Nf6+ {[%clk 0:00:16]} 48. Kd4 {[%clk 0:00:06]}  b6 {[%clk 0:00:13]} 49. Be1 {[%clk 0:00:05]}  c5+ {[%clk 0:00:13]} 50. Kc4 {[%clk 0:00:05]}  Nd7 {[%clk 0:00:11]} 51. Bg3 {[%clk 0:00:05]}  Ne5+ {[%clk 0:00:11]} 52. Kc3 {[%clk 0:00:06]}  h5 {[%clk 0:00:11]} 53. b4 {[%clk 0:00:05]}  cxb4+ {[%clk 0:00:09]} 54. Kxb4 {[%clk 0:00:04]}  Kd5 {[%clk 0:00:09]} 55. Kb3 {[%clk 0:00:03]}  Nd3 {[%clk 0:00:09]} 56. Kc3 {[%clk 0:00:02]}  Nc5 {[%clk 0:00:09]} 57. Bf2 {[%clk 0:00:02]}  Ne4+ {[%clk 0:00:09]} 0-1


[Site "https://www.chess.com"]

[Event "Titled Tuesday Blitz August 17 2021"]
[White "Chirila, Ioan-Cristian"]
[Black "Ladan, Nicholas"]
[WhiteFideId "1211668"]
[BlackFideId "30918855"]
[WhiteElo "2445"]
[BlackElo "2344"]
[Result "1-0"]
[Round "01"]
[TimeControl "180+1"]
[Date "2021.08.18"]
[WhiteClock "0:00:07"]
[BlackClock "0:00:09"]

1. d4 {[%clk 0:02:51]}  d5 {[%clk 0:02:59]} 2. c4 {[%clk 0:02:51]}  c6 {[%clk 0:02:59]} 3. cxd5 {[%clk 0:02:50]}  cxd5 {[%clk 0:03:00]} 4. Nc3 {[%clk 0:02:50]}  Nc6 {[%clk 0:03:01]} 5. Bf4 {[%clk 0:02:50]}  Nf6 {[%clk 0:03:01]} 6. e3 {[%clk 0:02:50]}  Bf5 {[%clk 0:03:01]} 7. Qb3 {[%clk 0:02:49]}  Na5 {[%clk 0:03:01]} 8. Qa4+ {[%clk 0:02:47]}  Bd7 {[%clk 0:03:02]} 9. Qc2 {[%clk 0:02:46]}  e6 {[%clk 0:03:01]} 10. Bd3 {[%clk 0:02:41]}  Rc8 {[%clk 0:02:59]} 11. Nf3 {[%clk 0:02:41]}  Be7 {[%clk 0:02:58]} 12. h3 {[%clk 0:02:39]}  O-O {[%clk 0:02:58]} 13. O-O {[%clk 0:02:39]}  Nc4 {[%clk 0:02:52]} 14. Qe2 {[%clk 0:02:35]}  Qb6 {[%clk 0:02:43]} 15. Rab1 {[%clk 0:02:24]}  Bd6 {[%clk 0:02:42]} 16. Bg5 {[%clk 0:02:22]}  Bb8 {[%clk 0:02:34]} 17. Bxf6 {[%clk 0:02:15]}  gxf6 {[%clk 0:02:33]} 18. e4 {[%clk 0:02:15]}  Qd6 {[%clk 0:02:09]} 19. Rfe1 {[%clk 0:02:06]}  Kh8 {[%clk 0:02:08]} 20. Bxc4 {[%clk 0:01:59]}  Rxc4 {[%clk 0:02:06]} 21. exd5 {[%clk 0:01:28]}  exd5 {[%clk 0:02:05]} 22. Qe7 {[%clk 0:01:28]}  Bf5 {[%clk 0:01:40]} 23. Rbd1 {[%clk 0:01:20]}  Be4 {[%clk 0:01:28]} 24. Qxd6 {[%clk 0:01:12]}  Bxd6 {[%clk 0:01:29]} 25. Nxe4 {[%clk 0:01:07]}  dxe4 {[%clk 0:01:30]} 26. Rxe4 {[%clk 0:01:08]}  Rc2 {[%clk 0:01:23]} 27. Rd2 {[%clk 0:01:07]}  Rfc8 {[%clk 0:01:17]} 28. Re8+ {[%clk 0:00:54]}  Kg7 {[%clk 0:01:09]} 29. Rxc8 {[%clk 0:00:54]}  Rxc8 {[%clk 0:01:08]} 30. g3 {[%clk 0:00:54]}  f5 {[%clk 0:01:02]} 31. Kg2 {[%clk 0:00:51]}  Kf6 {[%clk 0:01:02]} 32. Ne1 {[%clk 0:00:45]}  h5 {[%clk 0:01:00]} 33. Nd3 {[%clk 0:00:40]}  h4 {[%clk 0:00:58]} 34. gxh4 {[%clk 0:00:18]}  Rh8 {[%clk 0:00:55]} 35. f4 {[%clk 0:00:13]}  Rxh4 {[%clk 0:00:53]} 36. Kg3 {[%clk 0:00:13]}  Rh8 {[%clk 0:00:51]} 37. Ne5 {[%clk 0:00:14]}  Ke6 {[%clk 0:00:50]} 38. d5+ {[%clk 0:00:13]}  Kf6 {[%clk 0:00:48]} 39. Nc4 {[%clk 0:00:13]}  Bc5 {[%clk 0:00:36]} 40. d6 {[%clk 0:00:12]}  b5 {[%clk 0:00:36]} 41. Ne5 {[%clk 0:00:11]}  Rd8 {[%clk 0:00:29]} 42. d7 {[%clk 0:00:11]}  Ke6 {[%clk 0:00:29]} 43. h4 {[%clk 0:00:10]}  f6 {[%clk 0:00:27]} 44. Nc6 {[%clk 0:00:08]}  Rxd7 {[%clk 0:00:26]} 45. Rxd7 {[%clk 0:00:09]}  Kxd7 {[%clk 0:00:27]} 46. Na5 {[%clk 0:00:04]}  Bf8 {[%clk 0:00:22]} 47. h5 {[%clk 0:00:04]}  Kd6 {[%clk 0:00:21]} 48. Nb3 {[%clk 0:00:05]}  Kd5 {[%clk 0:00:20]} 49. Kf3 {[%clk 0:00:05]}  Kc4 {[%clk 0:00:20]} 50. Ke3 {[%clk 0:00:05]}  a6 {[%clk 0:00:17]} 51. Nd4 {[%clk 0:00:06]}  Bc5 {[%clk 0:00:15]} 52. h6 {[%clk 0:00:06]}  Bxd4+ {[%clk 0:00:15]} 53. Kf3 {[%clk 0:00:07]}  Bxb2 {[%clk 0:00:09]} 54. h7 {[%clk 0:00:08]}  Kb4 {[%clk 0:00:09]} 55. h8=Q {[%clk 0:00:09]}  Ka3 {[%clk 0:00:10]} 56. Qc8 {[%clk 0:00:08]}  a5 {[%clk 0:00:09]} 57. Qc5+ {[%clk 0:00:08]}  Ka4 {[%clk 0:00:08]} 58. Qxf5 {[%clk 0:00:08]}  Bc3 {[%clk 0:00:08]} 59. Qd3 {[%clk 0:00:08]}  b4 {[%clk 0:00:08]} 60. Qc2+ {[%clk 0:00:07]}  Ka3 {[%clk 0:00:09]} 61. Qb3# {[%clk 0:00:07]} 1-0


[Site "https://www.chess.com"]

[Event "Titled Tuesday Blitz August 17 2021"]
[White "Deepan Chakkravarthy J."]
[Black "Obolentseva, Alexandra"]
[WhiteFideId "5011132"]
[BlackFideId "24153648"]
[WhiteElo "2490"]
[BlackElo "2113"]
[Result "1-0"]
[Round "01"]
[TimeControl "180+1"]
[Date "2021.08.17"]
[WhiteClock "0:00:11"]
[BlackClock "0:00:20"]

1. Nf3 {[%clk 0:02:56]}  Nf6 {[%clk 0:02:55]} 2. c4 {[%clk 0:02:50]}  g6 {[%clk 0:02:54]} 3. Nc3 {[%clk 0:02:49]}  Bg7 {[%clk 0:02:53]} 4. d3 {[%clk 0:02:48]}  O-O {[%clk 0:02:53]} 5. h4 {[%clk 0:02:48]}  h5 {[%clk 0:02:52]} 6. Bg5 {[%clk 0:02:45]}  d6 {[%clk 0:02:51]} 7. Qd2 {[%clk 0:02:45]}  Kh7 {[%clk 0:02:49]} 8. e4 {[%clk 0:02:38]}  c5 {[%clk 0:02:39]} 9. Be2 {[%clk 0:02:37]}  Nc6 {[%clk 0:02:38]} 10. Nd5 {[%clk 0:02:34]}  Nxd5 {[%clk 0:02:37]} 11. cxd5 {[%clk 0:02:31]}  Nd4 {[%clk 0:02:33]} 12. Nxd4 {[%clk 0:02:31]}  Bxd4 {[%clk 0:02:34]} 13. g4 {[%clk 0:02:26]}  Bxg4 {[%clk 0:02:19]} 14. Bxg4 {[%clk 0:02:24]}  hxg4 {[%clk 0:02:20]} 15. h5 {[%clk 0:02:25]}  Rh8 {[%clk 0:02:15]} 16. O-O-O {[%clk 0:02:02]}  gxh5 {[%clk 0:02:05]} 17. Rxh5+ {[%clk 0:02:01]}  Kg6 {[%clk 0:02:05]} 18. Bh6 {[%clk 0:01:54]}  f6 {[%clk 0:01:57]} 19. Rdh1 {[%clk 0:01:53]}  Kf7 {[%clk 0:01:46]} 20. R5h4 {[%clk 0:01:47]}  Qd7 {[%clk 0:01:44]} 21. Qe2 {[%clk 0:01:14]}  Rag8 {[%clk 0:01:41]} 22. Bd2 {[%clk 0:00:39]}  Rxh4 {[%clk 0:01:39]} 23. Rxh4 {[%clk 0:00:39]}  Ke8 {[%clk 0:01:32]} 24. Rh7 {[%clk 0:00:39]}  Be5 {[%clk 0:01:27]} 25. f4 {[%clk 0:00:33]}  gxf3 {[%clk 0:01:26]} 26. Qxf3 {[%clk 0:00:33]}  Rg1+ {[%clk 0:01:20]} 27. Be1 {[%clk 0:00:31]}  Qg4 {[%clk 0:01:09]} 28. Qxg4 {[%clk 0:00:17]}  Rxg4 {[%clk 0:01:09]} 29. Bc3 {[%clk 0:00:14]}  Bf4+ {[%clk 0:01:07]} 30. Kc2 {[%clk 0:00:14]}  Rg2+ {[%clk 0:01:07]} 31. Kb3 {[%clk 0:00:14]}  Kd7 {[%clk 0:01:03]} 32. Bxf6 {[%clk 0:00:13]}  b5 {[%clk 0:00:42]} 33. Rxe7+ {[%clk 0:00:13]}  Kc8 {[%clk 0:00:42]} 34. a4 {[%clk 0:00:12]}  bxa4+ {[%clk 0:00:34]} 35. Kxa4 {[%clk 0:00:12]}  Rg3 {[%clk 0:00:34]} 36. Kb5 {[%clk 0:00:12]}  Rg6 {[%clk 0:00:23]} 37. Kc6 {[%clk 0:00:12]}  Rg8 {[%clk 0:00:17]} 38. Rxa7 {[%clk 0:00:11]}  Kb8 {[%clk 0:00:17]} 39. Rb7+ {[%clk 0:00:11]}  Ka8 {[%clk 0:00:17]} 40. Bc3 {[%clk 0:00:10]}  Rc8+ {[%clk 0:00:17]} 41. Rc7 {[%clk 0:00:10]}  Rxc7+ {[%clk 0:00:17]} 42. Kxc7 {[%clk 0:00:10]}  Ka7 {[%clk 0:00:18]} 43. e5 {[%clk 0:00:10]}  dxe5 {[%clk 0:00:17]} 44. d6 {[%clk 0:00:10]}  c4 {[%clk 0:00:17]} 45. dxc4 {[%clk 0:00:09]}  e4 {[%clk 0:00:17]} 46. Bd4+ {[%clk 0:00:09]}  Ka8 {[%clk 0:00:16]} 47. Kc6 {[%clk 0:00:09]}  e3 {[%clk 0:00:16]} 48. d7 {[%clk 0:00:09]}  Bg5 {[%clk 0:00:16]} 49. Bc3 {[%clk 0:00:09]}  e2 {[%clk 0:00:15]} 50. Kc7 {[%clk 0:00:09]}  Be7 {[%clk 0:00:14]} 51. d8=Q+ {[%clk 0:00:09]}  Bxd8+ {[%clk 0:00:14]} 52. Kxd8 {[%clk 0:00:09]}  Kb7 {[%clk 0:00:14]} 53. Kd7 {[%clk 0:00:09]}  Kb6 {[%clk 0:00:14]} 54. Kd6 {[%clk 0:00:10]}  Kb7 {[%clk 0:00:13]} 55. c5 {[%clk 0:00:10]}  Kc8 {[%clk 0:00:14]} 56. b4 {[%clk 0:00:10]}  Kb8 {[%clk 0:00:15]} 57. b5 {[%clk 0:00:10]}  Kc8 {[%clk 0:00:16]} 58. b6 {[%clk 0:00:11]}  Kb7 {[%clk 0:00:16]} 59. Be1 {[%clk 0:00:10]}  Kb8 {[%clk 0:00:17]} 60. c6 {[%clk 0:00:11]}  Kc8 {[%clk 0:00:18]} 61. c7 {[%clk 0:00:11]}  Kb7 {[%clk 0:00:19]} 62. Kd7 {[%clk 0:00:11]}  Kxb6 {[%clk 0:00:18]} 63. c8=Q {[%clk 0:00:11]}  Kb5 {[%clk 0:00:19]} 64. Qc3 {[%clk 0:00:11]}  Ka4 {[%clk 0:00:20]} 65. Qb4# {[%clk 0:00:11]} 1-0


[Site "https://www.chess.com"]

[Event "Titled Tuesday Blitz August 17 2021"]
[White "Diakonova, Ekaterina"]
[Black "Wagh Suyog"]
[WhiteFideId "24172936"]
[BlackFideId "25071688"]
[WhiteElo "2102"]
[BlackElo "2219"]
[Result "0-1"]
[Round "01"]
[TimeControl "180+1"]
[Date "2021.08.17"]
[WhiteClock "0:00:19"]
[BlackClock "0:01:52"]

1. Nf3 {[%clk 0:03:00]}  d6 {[%clk 0:02:59]} 2. g3 {[%clk 0:02:59]}  Nf6 {[%clk 0:02:59]} 3. b3 {[%clk 0:02:59]}  e5 {[%clk 0:02:51]} 4. d3 {[%clk 0:02:59]}  Nc6 {[%clk 0:02:51]} 5. Bb2 {[%clk 0:02:57]}  Be7 {[%clk 0:02:51]} 6. Bg2 {[%clk 0:02:56]}  O-O {[%clk 0:02:51]} 7. O-O {[%clk 0:02:56]}  Bg4 {[%clk 0:02:51]} 8. h3 {[%clk 0:02:56]}  Bh5 {[%clk 0:02:51]} 9. c4 {[%clk 0:02:51]}  Re8 {[%clk 0:02:50]} 10. Nc3 {[%clk 0:02:50]}  Bf8 {[%clk 0:02:51]} 11. Nd5 {[%clk 0:02:34]}  Nxd5 {[%clk 0:02:48]} 12. cxd5 {[%clk 0:02:34]}  Ne7 {[%clk 0:02:49]} 13. g4 {[%clk 0:02:33]}  Bg6 {[%clk 0:02:47]} 14. e4 {[%clk 0:02:33]}  c6 {[%clk 0:02:47]} 15. dxc6 {[%clk 0:02:27]}  Nxc6 {[%clk 0:02:48]} 16. Qd2 {[%clk 0:02:05]}  a5 {[%clk 0:02:44]} 17. Rac1 {[%clk 0:01:59]}  a4 {[%clk 0:02:44]} 18. Rc4 {[%clk 0:01:53]}  axb3 {[%clk 0:02:39]} 19. axb3 {[%clk 0:01:53]}  f6 {[%clk 0:02:34]} 20. Ra4 {[%clk 0:01:33]}  Qb6 {[%clk 0:02:31]} 21. Rfa1 {[%clk 0:01:23]}  Rac8 {[%clk 0:02:30]} 22. b4 {[%clk 0:01:11]}  d5 {[%clk 0:02:27]} 23. Nh4 {[%clk 0:00:52]}  Nxb4 {[%clk 0:02:22]} 24. Nxg6 {[%clk 0:00:44]}  hxg6 {[%clk 0:02:10]} 25. exd5 {[%clk 0:00:44]}  Rc2 {[%clk 0:01:59]} 26. Rxb4 {[%clk 0:00:43]}  Qc5 {[%clk 0:01:59]} 27. Rc4 {[%clk 0:00:37]}  Qxc4 {[%clk 0:01:53]} 28. dxc4 {[%clk 0:00:36]}  Rxd2 {[%clk 0:01:53]} 29. Bc1 {[%clk 0:00:21]}  Rd1+ {[%clk 0:01:53]} 30. Kh2 {[%clk 0:00:20]}  e4 {[%clk 0:01:54]} 31. Bb2 {[%clk 0:00:19]}  Bd6+ {[%clk 0:01:52]} 0-1


[Site "https://www.chess.com"]

[Event "Titled Tuesday Blitz August 17 2021"]
[White "Drygalov, Sergey"]
[Black "Savitha Shri B"]
[WhiteFideId "24171743"]
[BlackFideId "35061887"]
[WhiteElo "2514"]
[BlackElo "2006"]
[Result "1-0"]
[Round "01"]
[TimeControl "180+1"]
[Date "2021.08.17"]
[WhiteClock "0:02:07"]
[BlackClock "0:01:06"]

1. e4 {[%clk 0:02:58]}  c5 {[%clk 0:03:00]} 2. Nf3 {[%clk 0:02:58]}  e6 {[%clk 0:02:59]} 3. d4 {[%clk 0:02:59]}  cxd4 {[%clk 0:03:00]} 4. Nxd4 {[%clk 0:02:59]}  Nc6 {[%clk 0:03:00]} 5. Nc3 {[%clk 0:02:59]}  a6 {[%clk 0:03:00]} 6. Be3 {[%clk 0:02:58]}  Qc7 {[%clk 0:03:00]} 7. Qf3 {[%clk 0:02:59]}  b5 {[%clk 0:02:59]} 8. O-O-O {[%clk 0:02:58]}  Bb7 {[%clk 0:02:57]} 9. Qg3 {[%clk 0:02:58]}  Qxg3 {[%clk 0:02:50]} 10. hxg3 {[%clk 0:02:59]}  Nf6 {[%clk 0:02:35]} 11. f3 {[%clk 0:02:58]}  Bb4 {[%clk 0:02:34]} 12. g4 {[%clk 0:02:51]}  O-O-O {[%clk 0:02:19]} 13. g5 {[%clk 0:02:50]}  Ne8 {[%clk 0:02:19]} 14. Nb3 {[%clk 0:02:50]}  Nc7 {[%clk 0:02:18]} 15. Nc5 {[%clk 0:02:41]}  d5 {[%clk 0:02:11]} 16. exd5 {[%clk 0:02:39]}  exd5 {[%clk 0:01:52]} 17. Rh4 {[%clk 0:02:35]}  d4 {[%clk 0:01:38]} 18. Nxb7 {[%clk 0:02:35]}  Kxb7 {[%clk 0:01:28]} 19. Bxd4 {[%clk 0:02:35]}  Ne6 {[%clk 0:01:27]} 20. Be3 {[%clk 0:02:33]}  Rxd1+ {[%clk 0:01:27]} 21. Nxd1 {[%clk 0:02:32]}  Rd8 {[%clk 0:01:28]} 22. Bd3 {[%clk 0:02:33]}  a5 {[%clk 0:01:18]} 23. Bxb5 {[%clk 0:02:27]}  Ne5 {[%clk 0:01:16]} 24. c3 {[%clk 0:02:25]}  Be7 {[%clk 0:01:14]} 25. Rxh7 {[%clk 0:02:22]}  Nxg5 {[%clk 0:01:10]} 26. Rxg7 {[%clk 0:02:18]}  Ne6 {[%clk 0:01:11]} 27. Rh7 {[%clk 0:02:18]}  Rg8 {[%clk 0:01:11]} 28. f4 {[%clk 0:02:14]}  Nf8 {[%clk 0:01:06]} 29. Rh6 {[%clk 0:02:07]} 1-0


[Site "https://www.chess.com"]

[Event "Titled Tuesday Blitz August 17 2021"]
[White "Duboue, Peio"]
[Black "Preotu, Razvan"]
[WhiteFideId "654833"]
[BlackFideId "2613280"]
[WhiteElo "2417"]
[BlackElo "2407"]
[Result "0-1"]
[Round "01"]
[TimeControl "180+1"]
[Date "2021.08.17"]
[WhiteClock "0:01:01"]
[BlackClock "0:01:09"]

1. e4 {[%clk 0:03:00]}  c5 {[%clk 0:02:59]} 2. c3 {[%clk 0:03:00]}  Nf6 {[%clk 0:02:59]} 3. e5 {[%clk 0:03:01]}  Nd5 {[%clk 0:03:00]} 4. d4 {[%clk 0:03:02]}  cxd4 {[%clk 0:02:59]} 5. Nf3 {[%clk 0:03:02]}  Nc6 {[%clk 0:02:56]} 6. cxd4 {[%clk 0:03:03]}  d6 {[%clk 0:02:56]} 7. Bc4 {[%clk 0:03:03]}  Nb6 {[%clk 0:02:53]} 8. Bb5 {[%clk 0:03:04]}  dxe5 {[%clk 0:02:49]} 9. Nxe5 {[%clk 0:03:05]}  Bd7 {[%clk 0:02:48]} 10. Nxd7 {[%clk 0:03:05]}  Qxd7 {[%clk 0:02:49]} 11. O-O {[%clk 0:03:06]}  e6 {[%clk 0:02:40]} 12. Nc3 {[%clk 0:03:05]}  a6 {[%clk 0:02:39]} 13. Bxc6 {[%clk 0:03:04]}  Qxc6 {[%clk 0:02:40]} 14. Re1 {[%clk 0:02:55]}  Bb4 {[%clk 0:02:40]} 15. Qg4 {[%clk 0:02:52]}  Kf8 {[%clk 0:02:38]} 16. Bd2 {[%clk 0:02:48]}  Nc4 {[%clk 0:02:34]} 17. Bc1 {[%clk 0:02:43]}  h5 {[%clk 0:02:32]} 18. Qg5 {[%clk 0:02:40]}  h4 {[%clk 0:02:19]} 19. h3 {[%clk 0:02:39]}  f6 {[%clk 0:02:04]} 20. Qg4 {[%clk 0:02:32]}  Kf7 {[%clk 0:02:04]} 21. Rd1 {[%clk 0:02:16]}  Bxc3 {[%clk 0:02:02]} 22. bxc3 {[%clk 0:02:16]}  Qd5 {[%clk 0:01:37]} 23. Bf4 {[%clk 0:02:14]}  b5 {[%clk 0:01:27]} 24. Rdb1 {[%clk 0:02:07]}  g5 {[%clk 0:01:20]} 25. Bh2 {[%clk 0:02:04]}  Nd2 {[%clk 0:01:20]} 26. Rb2 {[%clk 0:01:58]}  Ne4 {[%clk 0:01:20]} 27. c4 {[%clk 0:01:21]}  bxc4 {[%clk 0:01:19]} 28. Rab1 {[%clk 0:01:21]}  c3 {[%clk 0:01:11]} 29. Rb7+ {[%clk 0:01:16]}  Kg6 {[%clk 0:01:11]} 30. Rc7 {[%clk 0:01:01]}  Rhc8 {[%clk 0:01:09]} 0-1


[Site "https://www.chess.com"]

[Event "Titled Tuesday Blitz August 17 2021"]
[White "Filippova, Margarita"]
[Black "Tristan, Leonardo"]
[WhiteFideId "34199680"]
[BlackFideId "113816"]
[WhiteElo "1829"]
[BlackElo "2404"]
[Result "0-1"]
[Round "01"]
[TimeControl "180+1"]
[Date "2021.08.17"]
[WhiteClock "0:01:04"]
[BlackClock "0:00:30"]

1. Nf3 {[%clk 0:02:53]}  d5 {[%clk 0:02:59]} 2. d4 {[%clk 0:02:53]}  Nf6 {[%clk 0:03:00]} 3. c4 {[%clk 0:02:53]}  e6 {[%clk 0:03:00]} 4. Nc3 {[%clk 0:02:54]}  a6 {[%clk 0:03:00]} 5. e3 {[%clk 0:02:53]}  b6 {[%clk 0:03:00]} 6. Qc2 {[%clk 0:02:52]}  Bb7 {[%clk 0:03:00]} 7. Be2 {[%clk 0:02:52]}  Nbd7 {[%clk 0:03:00]} 8. O-O {[%clk 0:02:52]}  Bd6 {[%clk 0:03:01]} 9. Rd1 {[%clk 0:02:52]}  O-O {[%clk 0:02:59]} 10. a3 {[%clk 0:02:47]}  dxc4 {[%clk 0:02:58]} 11. Ne5 {[%clk 0:02:41]}  Bxe5 {[%clk 0:02:44]} 12. dxe5 {[%clk 0:02:40]}  Nd5 {[%clk 0:02:45]} 13. Bxc4 {[%clk 0:02:32]}  Nxe5 {[%clk 0:02:43]} 14. Bxd5 {[%clk 0:02:15]}  exd5 {[%clk 0:02:43]} 15. e4 {[%clk 0:02:13]}  d4 {[%clk 0:02:39]} 16. Nd5 {[%clk 0:02:07]}  c5 {[%clk 0:02:28]} 17. Qb3 {[%clk 0:02:01]}  Bxd5 {[%clk 0:02:17]} 18. exd5 {[%clk 0:02:01]}  c4 {[%clk 0:02:10]} 19. Qb4 {[%clk 0:01:49]}  Qxd5 {[%clk 0:01:35]} 20. Qxb6 {[%clk 0:01:47]}  Nd3 {[%clk 0:01:36]} 21. b3 {[%clk 0:01:36]}  Rab8 {[%clk 0:01:04]} 22. bxc4 {[%clk 0:01:30]}  Qxc4 {[%clk 0:01:05]} 23. Qd6 {[%clk 0:01:27]}  Rfd8 {[%clk 0:01:04]} 24. Qg3 {[%clk 0:01:26]}  Nc5 {[%clk 0:00:58]} 25. Bg5 {[%clk 0:01:19]}  Ne4 {[%clk 0:00:51]} 26. Qf4 {[%clk 0:01:10]}  Nxg5 {[%clk 0:00:51]} 27. Qxg5 {[%clk 0:01:10]}  Rd5 {[%clk 0:00:47]} 28. Qf4 {[%clk 0:01:09]}  Rbd8 {[%clk 0:00:47]} 29. Rac1 {[%clk 0:01:08]}  Qa4 {[%clk 0:00:32]} 30. Rc7 {[%clk 0:01:04]}  Qxd1# {[%clk 0:00:30]} 0-1


[Site "https://www.chess.com"]